[Event "Titled Tuesday Blitz November 08 Early 2022"]
[White "Ibarra Jerez, Jose Carlos"]
[Black "Samunenkov, Ihor"]
[WhiteFideId "2226332"]
[BlackFideId "14187086"]
[WhiteElo "2638"]
[BlackElo "2441"]
[Result "1-0"]
[Round "09"]
[TimeControl "180+1"]
[Date "2022.11.08"]
[WhiteClock "0:00:34"]
[BlackClock "0:00:03"]

1. e4 {[%clk 0:03:00]}  c6 {[%clk 0:03:00]} 2. Nf3 {[%clk 0:03:00]}  d5 {[%clk 0:03:00]} 3. d3 {[%clk 0:03:01]}  Qc7 {[%clk 0:02:57]} 4. exd5 {[%clk 0:03:01]}  cxd5 {[%clk 0:02:57]} 5. c4 {[%clk 0:03:02]}  Nf6 {[%clk 0:02:58]} 6. Nc3 {[%clk 0:03:01]}  e6 {[%clk 0:02:57]} 7. g3 {[%clk 0:03:02]}  dxc4 {[%clk 0:02:45]} 8. dxc4 {[%clk 0:03:02]}  Bb4 {[%clk 0:02:45]} 9. Bf4 {[%clk 0:02:52]}  Qa5 {[%clk 0:02:28]} 10. Bd2 {[%clk 0:02:47]}  Qh5 {[%clk 0:01:55]} 11. Nb5 {[%clk 0:02:14]}  Bxd2+ {[%clk 0:01:53]} 12. Nxd2 {[%clk 0:02:06]}  Qe5+ {[%clk 0:01:25]} 13. Qe2 {[%clk 0:02:06]}  Qxe2+ {[%clk 0:01:23]} 14. Bxe2 {[%clk 0:02:06]}  Na6 {[%clk 0:01:23]} 15. Bf3 {[%clk 0:01:58]}  Ke7 {[%clk 0:01:22]} 16. Nb3 {[%clk 0:01:48]}  Nd7 {[%clk 0:01:09]} 17. O-O-O {[%clk 0:01:47]}  Ne5 {[%clk 0:01:01]} 18. Be2 {[%clk 0:01:47]}  Bd7 {[%clk 0:00:59]} 19. f4 {[%clk 0:01:42]}  Nxc4 {[%clk 0:00:34]} 20. Bxc4 {[%clk 0:01:20]}  Rac8 {[%clk 0:00:32]} 21. Nd6 {[%clk 0:01:15]}  Rc6 {[%clk 0:00:15]} 22. Na5 {[%clk 0:01:12]}  Rxd6 {[%clk 0:00:16]} 23. Rxd6 {[%clk 0:01:11]}  Kxd6 {[%clk 0:00:17]} 24. Nxb7+ {[%clk 0:01:10]}  Kc7 {[%clk 0:00:17]} 25. Bxa6 {[%clk 0:01:00]}  Bc6 {[%clk 0:00:16]} 26. Rd1 {[%clk 0:01:00]}  Kb6 {[%clk 0:00:11]} 27. Nd8 {[%clk 0:00:51]}  Kxa6 {[%clk 0:00:07]} 28. Rd6 {[%clk 0:00:41]}  Kb5 {[%clk 0:00:04]} 29. a4+ {[%clk 0:00:37]}  Kb4 {[%clk 0:00:03]} 30. Nxc6+ {[%clk 0:00:34]}  Kc5 {[%clk 0:00:03]} 31. Rd8 {[%clk 0:00:34]} 1-0


[Site "https://www.chess.com"]

[Event "Titled Tuesday Blitz November 08 Early 2022"]
[White "Ilkhomi, Jaloliddin"]
[Black "Dehtiarov, Roman"]
[WhiteFideId "14700948"]
[BlackFideId "14186640"]
[WhiteElo "2045"]
[BlackElo "2200"]
[Result "1/2-1/2"]
[Round "09"]
[TimeControl "180+1"]
[Date "2022.11.09"]
[WhiteClock "0:00:13"]
[BlackClock "0:00:16"]

1. d4 {[%clk 0:02:58]}  Nf6 {[%clk 0:02:59]} 2. Bf4 {[%clk 0:02:58]}  d5 {[%clk 0:02:57]} 3. e3 {[%clk 0:02:57]}  e6 {[%clk 0:02:56]} 4. Nd2 {[%clk 0:02:56]}  Bd6 {[%clk 0:02:55]} 5. Bg3 {[%clk 0:02:56]}  O-O {[%clk 0:02:54]} 6. Ngf3 {[%clk 0:02:56]}  c5 {[%clk 0:02:53]} 7. c3 {[%clk 0:02:57]}  Nc6 {[%clk 0:02:53]} 8. Bd3 {[%clk 0:02:56]}  Qe7 {[%clk 0:02:42]} 9. Ne5 {[%clk 0:02:54]}  Bxe5 {[%clk 0:02:42]} 10. dxe5 {[%clk 0:02:55]}  Nd7 {[%clk 0:02:42]} 11. Nf3 {[%clk 0:02:53]}  f5 {[%clk 0:02:40]} 12. exf6 {[%clk 0:02:40]}  Nxf6 {[%clk 0:02:39]} 13. Ne5 {[%clk 0:02:36]}  Bd7 {[%clk 0:02:35]} 14. Qe2 {[%clk 0:02:29]}  a6 {[%clk 0:02:29]} 15. O-O {[%clk 0:02:13]}  b5 {[%clk 0:02:23]} 16. e4 {[%clk 0:02:07]}  Nxe5 {[%clk 0:02:04]} 17. Bxe5 {[%clk 0:02:01]}  Bc6 {[%clk 0:02:01]} 18. exd5 {[%clk 0:01:56]}  exd5 {[%clk 0:01:54]} 19. Rfe1 {[%clk 0:01:45]}  Rae8 {[%clk 0:01:49]} 20. f4 {[%clk 0:01:26]}  Ne4 {[%clk 0:01:42]} 21. Bxe4 {[%clk 0:01:26]}  dxe4 {[%clk 0:01:43]} 22. Rad1 {[%clk 0:01:26]}  Rd8 {[%clk 0:01:43]} 23. Qe3 {[%clk 0:01:21]}  Rxd1 {[%clk 0:01:25]} 24. Rxd1 {[%clk 0:01:22]}  Rd8 {[%clk 0:01:17]} 25. Rxd8+ {[%clk 0:01:19]}  Qxd8 {[%clk 0:01:18]} 26. h3 {[%clk 0:01:09]}  Qd5 {[%clk 0:00:59]} 27. Kh2 {[%clk 0:01:09]}  g6 {[%clk 0:00:56]} 28. b4 {[%clk 0:01:00]}  Kf7 {[%clk 0:00:48]} 29. bxc5 {[%clk 0:00:55]}  Qd3 {[%clk 0:00:42]} 30. Bd4 {[%clk 0:00:38]}  Qxe3 {[%clk 0:00:37]} 31. Bxe3 {[%clk 0:00:39]}  Ke6 {[%clk 0:00:38]} 32. g4 {[%clk 0:00:35]}  Kd5 {[%clk 0:00:37]} 33. Bd4 {[%clk 0:00:36]}  Kc4 {[%clk 0:00:35]} 34. Kg2 {[%clk 0:00:36]}  Kd3 {[%clk 0:00:20]} 35. Kf2 {[%clk 0:00:36]}  Bd7 {[%clk 0:00:20]} 36. a3 {[%clk 0:00:29]}  a5 {[%clk 0:00:19]} 37. Ke1 {[%clk 0:00:22]}  a4 {[%clk 0:00:19]} 38. Kf2 {[%clk 0:00:21]}  Kd2 {[%clk 0:00:10]} 39. c6 {[%clk 0:00:17]}  Bxc6 {[%clk 0:00:10]} 40. f5 {[%clk 0:00:18]}  gxf5 {[%clk 0:00:10]} 41. gxf5 {[%clk 0:00:19]}  Bd7 {[%clk 0:00:11]} 42. f6 {[%clk 0:00:20]}  Be6 {[%clk 0:00:11]} 43. h4 {[%clk 0:00:20]}  Bf7 {[%clk 0:00:08]} 44. Bc5 {[%clk 0:00:18]}  Be6 {[%clk 0:00:05]} 45. Bd4 {[%clk 0:00:17]}  Bf7 {[%clk 0:00:05]} 46. Bb6 {[%clk 0:00:18]}  h5 {[%clk 0:00:05]} 47. Ba7 {[%clk 0:00:16]}  Kxc3 {[%clk 0:00:04]} 48. Ke3 {[%clk 0:00:17]}  b4 {[%clk 0:00:04]} 49. Bd4+ {[%clk 0:00:11]}  Kc4 {[%clk 0:00:03]} 50. axb4 {[%clk 0:00:12]}  Kxb4 {[%clk 0:00:03]} 51. Kxe4 {[%clk 0:00:12]}  Kc4 {[%clk 0:00:03]} 52. Be5 {[%clk 0:00:12]}  a3 {[%clk 0:00:04]} 53. Kf5 {[%clk 0:00:12]}  Kd5 {[%clk 0:00:04]} 54. Ba1 {[%clk 0:00:12]}  a2 {[%clk 0:00:04]} 55. Kg5 {[%clk 0:00:13]}  Ke6 {[%clk 0:00:04]} 56. Kh6 {[%clk 0:00:13]}  Kf5 {[%clk 0:00:02]} 57. Kg7 {[%clk 0:00:14]}  Ke6 {[%clk 0:00:03]} 58. Bb2 {[%clk 0:00:13]}  Be8 {[%clk 0:00:03]} 59. Bc3 {[%clk 0:00:11]}  Bf7 {[%clk 0:00:04]} 60. Ba1 {[%clk 0:00:11]}  Be8 {[%clk 0:00:04]} 61. Kf8 {[%clk 0:00:12]}  Bf7 {[%clk 0:00:05]} 62. Bd4 {[%clk 0:00:10]}  Bg6 {[%clk 0:00:05]} 63. Kg7 {[%clk 0:00:10]}  Be8 {[%clk 0:00:04]} 64. Kh6 {[%clk 0:00:10]}  Kd5 {[%clk 0:00:04]} 65. Bb2 {[%clk 0:00:10]}  Bf7 {[%clk 0:00:05]} 66. Kg5 {[%clk 0:00:09]}  Ke6 {[%clk 0:00:05]} 67. Kf4 {[%clk 0:00:10]}  Kd5 {[%clk 0:00:05]} 68. Kf5 {[%clk 0:00:10]}  Kd6 {[%clk 0:00:05]} 69. Ba3+ {[%clk 0:00:10]}  Kd5 {[%clk 0:00:04]} 70. Bb2 {[%clk 0:00:10]}  Be8 {[%clk 0:00:04]} 71. Ba1 {[%clk 0:00:09]}  Bf7 {[%clk 0:00:02]} 72. Kf4 {[%clk 0:00:09]}  Ke6 {[%clk 0:00:02]} 73. Ke4 {[%clk 0:00:09]}  Bg6+ {[%clk 0:00:02]} 74. Kf4 {[%clk 0:00:09]}  Kf7 {[%clk 0:00:03]} 75. Kg5 {[%clk 0:00:08]}  Bb1 {[%clk 0:00:03]} 76. Bb2 {[%clk 0:00:09]}  Bg6 {[%clk 0:00:02]} 77. Ba1 {[%clk 0:00:10]}  Bb1 {[%clk 0:00:02]} 78. Kxh5 {[%clk 0:00:10]}  Bc2 {[%clk 0:00:03]} 79. Kg5 {[%clk 0:00:11]}  Bb1 {[%clk 0:00:04]} 80. h5 {[%clk 0:00:12]}  Bc2 {[%clk 0:00:05]} 81. Kf4 {[%clk 0:00:11]}  Bb1 {[%clk 0:00:06]} 82. Bb2 {[%clk 0:00:11]}  Bc2 {[%clk 0:00:06]} 83. Ke3 {[%clk 0:00:12]}  Bb1 {[%clk 0:00:07]} 84. Kd2 {[%clk 0:00:12]}  Bf5 {[%clk 0:00:07]} 85. Ke3 {[%clk 0:00:11]}  Bg4 {[%clk 0:00:07]} 86. h6 {[%clk 0:00:11]}  Bf5 {[%clk 0:00:07]} 87. Kf4 {[%clk 0:00:10]}  Bb1 {[%clk 0:00:07]} 88. Ba1 {[%clk 0:00:10]}  Bc2 {[%clk 0:00:07]} 89. Ke5 {[%clk 0:00:10]}  Bb1 {[%clk 0:00:07]} 90. Kd6 {[%clk 0:00:11]}  Bc2 {[%clk 0:00:08]} 91. Kc5 {[%clk 0:00:11]}  Bb1 {[%clk 0:00:08]} 92. Kd6 {[%clk 0:00:11]}  Bh7 {[%clk 0:00:08]} 93. Kd5 {[%clk 0:00:12]}  Kg6 {[%clk 0:00:08]} 94. Kd6 {[%clk 0:00:06]}  Bg8 {[%clk 0:00:07]} 95. Ke7 {[%clk 0:00:06]}  Kxh6 {[%clk 0:00:07]} 96. Kf8 {[%clk 0:00:06]}  Bb3 {[%clk 0:00:07]} 97. Ke7 {[%clk 0:00:04]}  Kg6 {[%clk 0:00:07]} 98. Bb2 {[%clk 0:00:05]}  Bf7 {[%clk 0:00:07]} 99. Ba1 {[%clk 0:00:06]}  Bb3 {[%clk 0:00:07]} 100. Bd4 {[%clk 0:00:07]}  Bf7 {[%clk 0:00:08]} 101. Kd6 {[%clk 0:00:07]}  Bb3 {[%clk 0:00:09]} 102. Kc5 {[%clk 0:00:07]}  Bf7 {[%clk 0:00:10]} 103. Kb4 {[%clk 0:00:08]}  Kf5 {[%clk 0:00:10]} 104. Ka3 {[%clk 0:00:08]}  Ke4 {[%clk 0:00:11]} 105. Ba1 {[%clk 0:00:09]}  Kd3 {[%clk 0:00:12]} 106. Kb2 {[%clk 0:00:10]}  Kd2 {[%clk 0:00:11]} 107. Ka3 {[%clk 0:00:10]}  Kc2 {[%clk 0:00:12]} 108. Be5 {[%clk 0:00:10]}  Kb1 {[%clk 0:00:12]} 109. Kb4 {[%clk 0:00:11]}  Bg6 {[%clk 0:00:12]} 110. Kc5 {[%clk 0:00:10]}  Bf7 {[%clk 0:00:13]} 111. Kd6 {[%clk 0:00:11]}  Bh5 {[%clk 0:00:13]} 112. Ke7 {[%clk 0:00:11]}  Bg6 {[%clk 0:00:14]} 113. Kd8 {[%clk 0:00:11]}  Bf7 {[%clk 0:00:14]} 114. Kc7 {[%clk 0:00:11]}  Bh5 {[%clk 0:00:15]} 115. Kc6 {[%clk 0:00:11]}  Kc2 {[%clk 0:00:15]} 116. Kd5 {[%clk 0:00:11]}  Kd3 {[%clk 0:00:15]} 117. Ke6 {[%clk 0:00:11]}  Ke4 {[%clk 0:00:16]} 118. Ba1 {[%clk 0:00:11]}  Kd3 {[%clk 0:00:16]} 119. Ke7 {[%clk 0:00:11]}  Kc2 {[%clk 0:00:16]} 120. Kf8 {[%clk 0:00:11]}  Kb1 {[%clk 0:00:16]} 121. Be5 {[%clk 0:00:12]}  Bg6 {[%clk 0:00:15]} 122. Kg7 {[%clk 0:00:12]}  Be8 {[%clk 0:00:15]} 123. Kh6 {[%clk 0:00:12]}  a1=Q {[%clk 0:00:15]} 124. Bxa1 {[%clk 0:00:11]}  Kxa1 {[%clk 0:00:16]} 125. Kg7 {[%clk 0:00:12]}  Bh5 {[%clk 0:00:16]} 126. Kh6 {[%clk 0:00:11]}  Be8 {[%clk 0:00:16]} 127. Kg7 {[%clk 0:00:10]}  Bh5 {[%clk 0:00:16]} 128. Kf8 {[%clk 0:00:11]}  Kb2 {[%clk 0:00:15]} 129. Ke7 {[%clk 0:00:11]}  Kc3 {[%clk 0:00:16]} 130. Ke6 {[%clk 0:00:12]}  Kd4 {[%clk 0:00:16]} 131. f7 {[%clk 0:00:13]}  Bxf7+ {[%clk 0:00:16]} 1/2-1/2


[Site "https://www.chess.com"]

[Event "Titled Tuesday Blitz November 08 Early 2022"]
[White "Jiang, Andrew"]
[Black "Goryachkina, Aleksandra"]
[WhiteFideId "30953510"]
[BlackFideId "4147103"]
[WhiteElo "2265"]
[BlackElo "2661"]
[Result "0-1"]
[Round "09"]
[TimeControl "180+1"]
[Date "2022.11.09"]
[WhiteClock "0:00:04"]
[BlackClock "0:00:05"]

1. e4 {[%clk 0:03:00]}  c5 {[%clk 0:02:59]} 2. Nf3 {[%clk 0:02:58]}  e6 {[%clk 0:02:59]} 3. c3 {[%clk 0:02:54]}  d5 {[%clk 0:02:58]} 4. e5 {[%clk 0:02:54]}  Nc6 {[%clk 0:02:57]} 5. d4 {[%clk 0:02:54]}  Nge7 {[%clk 0:02:57]} 6. a3 {[%clk 0:02:53]}  Bd7 {[%clk 0:02:44]} 7. Be2 {[%clk 0:02:49]}  Nf5 {[%clk 0:02:42]} 8. b4 {[%clk 0:02:48]}  cxd4 {[%clk 0:02:41]} 9. cxd4 {[%clk 0:02:48]}  Qb6 {[%clk 0:02:39]} 10. Bb2 {[%clk 0:02:48]}  Be7 {[%clk 0:02:21]} 11. Nbd2 {[%clk 0:02:46]}  Ncxd4 {[%clk 0:02:11]} 12. Nxd4 {[%clk 0:02:26]}  Nxd4 {[%clk 0:02:10]} 13. Bd3 {[%clk 0:02:26]}  O-O {[%clk 0:02:01]} 14. O-O {[%clk 0:02:15]}  Rac8 {[%clk 0:01:47]} 15. Qg4 {[%clk 0:01:08]}  Nf5 {[%clk 0:01:45]} 16. Nf3 {[%clk 0:01:06]}  Bb5 {[%clk 0:01:36]} 17. Bxf5 {[%clk 0:00:56]}  exf5 {[%clk 0:01:36]} 18. Qxf5 {[%clk 0:00:43]}  Bxf1 {[%clk 0:01:33]} 19. Rxf1 {[%clk 0:00:43]}  a5 {[%clk 0:01:12]} 20. Nd4 {[%clk 0:00:31]}  axb4 {[%clk 0:01:08]} 21. Qg4 {[%clk 0:00:32]}  Qg6 {[%clk 0:01:04]} 22. Qd7 {[%clk 0:00:29]}  bxa3 {[%clk 0:00:58]} 23. Ba1 {[%clk 0:00:28]}  Bc5 {[%clk 0:00:52]} 24. f4 {[%clk 0:00:14]}  Qb6 {[%clk 0:00:47]} 25. Rd1 {[%clk 0:00:13]}  Qb3 {[%clk 0:00:40]} 26. Qg4 {[%clk 0:00:09]}  a2 {[%clk 0:00:32]} 27. f5 {[%clk 0:00:09]}  Bxd4+ {[%clk 0:00:22]} 28. Bxd4 {[%clk 0:00:10]}  Rc4 {[%clk 0:00:21]} 29. f6 {[%clk 0:00:10]}  g6 {[%clk 0:00:21]} 30. Rf1 {[%clk 0:00:04]}  Qb1 {[%clk 0:00:05]} 31. Qg5 {[%clk 0:00:02]}  Kh8 {[%clk 0:00:04]} 32. Qh6 {[%clk 0:00:02]}  Rg8 {[%clk 0:00:04]} 33. e6 {[%clk 0:00:02]}  Rxd4 {[%clk 0:00:04]} 34. exf7 {[%clk 0:00:02]}  Qxf1+ {[%clk 0:00:04]} 35. Kxf1 {[%clk 0:00:03]}  a1=Q+ {[%clk 0:00:04]} 36. Kf2 {[%clk 0:00:04]}  Qb2+ {[%clk 0:00:04]} 37. Kg3 {[%clk 0:00:04]}  Qc3+ {[%clk 0:00:04]} 38. Kf2 {[%clk 0:00:04]}  Rd2+ {[%clk 0:00:05]} 39. Ke1 {[%clk 0:00:04]}  Qc1# {[%clk 0:00:05]} 0-1


[Site "https://www.chess.com"]

[Event "Titled Tuesday Blitz November 08 Early 2022"]
[White "Johnson, Ben"]
[Black "Brown, Andrew"]
[WhiteFideId "2010917"]
[BlackFideId "3206513"]
[WhiteElo "2140"]
[BlackElo "2245"]
[Result "0-1"]
[Round "09"]
[TimeControl "180+1"]
[Date "2022.11.09"]
[WhiteClock "0:00:06"]
[BlackClock "0:00:06"]

1. Nf3 {[%clk 0:03:00]}  g6 {[%clk 0:02:59]} 2. e4 {[%clk 0:02:57]}  Bg7 {[%clk 0:02:59]} 3. d4 {[%clk 0:02:55]}  c6 {[%clk 0:02:59]} 4. Nc3 {[%clk 0:02:45]}  d5 {[%clk 0:02:59]} 5. e5 {[%clk 0:02:44]}  h5 {[%clk 0:02:56]} 6. Bd3 {[%clk 0:02:40]}  Nh6 {[%clk 0:02:55]} 7. Bg5 {[%clk 0:02:35]}  Bf5 {[%clk 0:02:52]} 8. O-O {[%clk 0:02:20]}  Nd7 {[%clk 0:02:44]} 9. Re1 {[%clk 0:02:17]}  Nf8 {[%clk 0:02:43]} 10. Nh4 {[%clk 0:02:08]}  Bxd3 {[%clk 0:02:10]} 11. Qxd3 {[%clk 0:02:09]}  Ne6 {[%clk 0:02:06]} 12. Bd2 {[%clk 0:02:03]}  Qb6 {[%clk 0:01:39]} 13. Ne2 {[%clk 0:01:55]}  Qb5 {[%clk 0:01:26]} 14. Qg3 {[%clk 0:01:30]}  Qxb2 {[%clk 0:00:54]} 15. Rec1 {[%clk 0:01:18]}  Qb5 {[%clk 0:00:17]} 16. Rab1 {[%clk 0:01:12]}  Qxe2 {[%clk 0:00:15]} 17. Bb4 {[%clk 0:01:06]}  Qg4 {[%clk 0:00:13]} 18. Qxg4 {[%clk 0:00:31]}  hxg4 {[%clk 0:00:14]} 19. Bc3 {[%clk 0:00:23]}  b5 {[%clk 0:00:12]} 20. a4 {[%clk 0:00:22]}  a6 {[%clk 0:00:09]} 21. g3 {[%clk 0:00:22]}  g5 {[%clk 0:00:08]} 22. Ng2 {[%clk 0:00:22]}  Nf5 {[%clk 0:00:08]} 23. Rd1 {[%clk 0:00:17]}  Kd7 {[%clk 0:00:08]} 24. Bb2 {[%clk 0:00:10]}  b4 {[%clk 0:00:07]} 25. c3 {[%clk 0:00:09]}  a5 {[%clk 0:00:07]} 26. Rdc1 {[%clk 0:00:08]}  Rhb8 {[%clk 0:00:07]} 27. c4 {[%clk 0:00:06]}  dxc4 {[%clk 0:00:06]} 28. Rxc4 {[%clk 0:00:05]}  Rb6 {[%clk 0:00:07]} 29. Rbc1 {[%clk 0:00:05]}  Rab8 {[%clk 0:00:06]} 30. Ne1 {[%clk 0:00:05]}  Nc7 {[%clk 0:00:06]} 31. Nd3 {[%clk 0:00:05]}  Nd5 {[%clk 0:00:05]} 32. Nc5+ {[%clk 0:00:05]}  Ke8 {[%clk 0:00:06]} 33. Nb3 {[%clk 0:00:05]}  e6 {[%clk 0:00:05]} 34. Nxa5 {[%clk 0:00:05]}  Nfe7 {[%clk 0:00:05]} 35. Nxc6 {[%clk 0:00:04]}  Nxc6 {[%clk 0:00:05]} 36. Rxc6 {[%clk 0:00:05]}  Rxc6 {[%clk 0:00:06]} 37. Rxc6 {[%clk 0:00:06]}  Ra8 {[%clk 0:00:06]} 0-1


[Site "https://www.chess.com"]

[Event "Titled Tuesday Blitz November 08 Early 2022"]
[White "Kamsky, Gata"]
[Black "Harsh Suresh"]
[WhiteFideId "2000024"]
[BlackFideId "45018464"]
[WhiteElo "2666"]
[BlackElo "2227"]
[Result "1-0"]
[Round "09"]
[TimeControl "180+1"]
[Date "2022.11.08"]
[WhiteClock "0:00:58"]
[BlackClock "0:00:04"]

1. d4 {[%clk 0:03:00]}  g6 {[%clk 0:02:58]} 2. Nf3 {[%clk 0:02:57]}  Bg7 {[%clk 0:02:57]} 3. c3 {[%clk 0:02:57]}  d6 {[%clk 0:02:57]} 4. e4 {[%clk 0:02:57]}  Nf6 {[%clk 0:02:55]} 5. Bd3 {[%clk 0:02:56]}  O-O {[%clk 0:02:55]} 6. O-O {[%clk 0:02:56]}  Nc6 {[%clk 0:02:55]} 7. h3 {[%clk 0:02:54]}  e5 {[%clk 0:02:55]} 8. Re1 {[%clk 0:02:54]}  h6 {[%clk 0:02:52]} 9. a4 {[%clk 0:02:54]}  Re8 {[%clk 0:02:47]} 10. d5 {[%clk 0:02:54]}  Ne7 {[%clk 0:02:44]} 11. c4 {[%clk 0:02:50]}  Nh5 {[%clk 0:02:44]} 12. a5 {[%clk 0:02:49]}  Nf4 {[%clk 0:02:42]} 13. Bc2 {[%clk 0:02:46]}  g5 {[%clk 0:02:41]} 14. Nh2 {[%clk 0:02:39]}  Neg6 {[%clk 0:02:39]} 15. g3 {[%clk 0:02:19]}  Nxh3+ {[%clk 0:02:25]} 16. Kg2 {[%clk 0:02:19]}  Qf6 {[%clk 0:02:06]} 17. Qf3 {[%clk 0:02:07]}  Qxf3+ {[%clk 0:01:49]} 18. Nxf3 {[%clk 0:02:05]}  g4 {[%clk 0:01:50]} 19. Ng1 {[%clk 0:02:01]}  Nxg1 {[%clk 0:01:46]} 20. Rxg1 {[%clk 0:02:00]}  h5 {[%clk 0:01:43]} 21. Nc3 {[%clk 0:01:59]}  a6 {[%clk 0:01:38]} 22. Rh1 {[%clk 0:01:59]}  h4 {[%clk 0:01:37]} 23. gxh4 {[%clk 0:01:59]}  Nf4+ {[%clk 0:01:37]} 24. Kg3 {[%clk 0:01:56]}  Nh5+ {[%clk 0:01:34]} 25. Kg2 {[%clk 0:01:56]}  Nf4+ {[%clk 0:01:33]} 26. Kf1 {[%clk 0:01:56]}  Bf6 {[%clk 0:01:31]} 27. Ne2 {[%clk 0:01:51]}  Nxe2 {[%clk 0:01:10]} 28. Kxe2 {[%clk 0:01:50]}  Kg7 {[%clk 0:01:11]} 29. Be3 {[%clk 0:01:47]}  Rh8 {[%clk 0:01:11]} 30. h5 {[%clk 0:01:47]}  Bd7 {[%clk 0:01:08]} 31. Rag1 {[%clk 0:01:46]}  Rag8 {[%clk 0:01:07]} 32. h6+ {[%clk 0:01:39]}  Kh7 {[%clk 0:00:54]} 33. Rh5 {[%clk 0:01:37]}  Rg6 {[%clk 0:00:52]} 34. Kd3 {[%clk 0:01:35]}  Rhg8 {[%clk 0:00:51]} 35. Bd1 {[%clk 0:01:35]}  Bg5 {[%clk 0:00:35]} 36. b4 {[%clk 0:01:18]}  Bxe3 {[%clk 0:00:33]} 37. Kxe3 {[%clk 0:01:17]}  Rxh6 {[%clk 0:00:31]} 38. Rxh6+ {[%clk 0:01:16]}  Kxh6 {[%clk 0:00:31]} 39. f4 {[%clk 0:01:12]}  exf4+ {[%clk 0:00:16]} 40. Kxf4 {[%clk 0:01:11]}  Rg5 {[%clk 0:00:14]} 41. Bxg4 {[%clk 0:01:07]}  Rxg4+ {[%clk 0:00:12]} 42. Rxg4 {[%clk 0:01:07]}  Bxg4 {[%clk 0:00:12]} 43. Kxg4 {[%clk 0:01:07]}  Kg6 {[%clk 0:00:13]} 44. c5 {[%clk 0:01:08]}  Kf6 {[%clk 0:00:08]} 45. Kf4 {[%clk 0:01:07]}  Ke7 {[%clk 0:00:06]} 46. Kf5 {[%clk 0:01:08]}  dxc5 {[%clk 0:00:03]} 47. bxc5 {[%clk 0:01:07]}  Kd7 {[%clk 0:00:02]} 48. e5 {[%clk 0:01:05]}  b6 {[%clk 0:00:02]} 49. cxb6 {[%clk 0:01:00]}  cxb6 {[%clk 0:00:02]} 50. axb6 {[%clk 0:01:01]}  a5 {[%clk 0:00:03]} 51. e6+ {[%clk 0:00:58]}  fxe6+ {[%clk 0:00:04]} 52. dxe6+ {[%clk 0:00:59]}  Kc6 {[%clk 0:00:04]} 53. e7 {[%clk 0:00:59]}  Kxb6 {[%clk 0:00:04]} 54. e8=Q {[%clk 0:00:58]} 1-0


[Site "https://www.chess.com"]

[Event "Titled Tuesday Blitz November 08 Early 2022"]
[White "Korelskiy, Egor"]
[Black "Valle Maytin, Luis Enrique"]
[WhiteFideId "34329064"]
[BlackFideId "3503666"]
[WhiteElo "2043"]
[BlackElo "2225"]
[Result "0-1"]
[Round "09"]
[TimeControl "180+1"]
[Date "2022.11.09"]
[WhiteClock "0:00:02"]
[BlackClock "0:00:25"]

1. e4 {[%clk 0:03:00]}  c6 {[%clk 0:02:52]} 2. Nc3 {[%clk 0:03:00]}  d5 {[%clk 0:02:53]} 3. Nf3 {[%clk 0:03:00]}  Bg4 {[%clk 0:02:49]} 4. h3 {[%clk 0:03:00]}  Bxf3 {[%clk 0:02:43]} 5. Qxf3 {[%clk 0:02:59]}  e6 {[%clk 0:02:44]} 6. d3 {[%clk 0:03:00]}  Nf6 {[%clk 0:02:43]} 7. Bd2 {[%clk 0:03:00]}  Be7 {[%clk 0:02:43]} 8. O-O-O {[%clk 0:03:00]}  d4 {[%clk 0:02:40]} 9. Ne2 {[%clk 0:02:59]}  e5 {[%clk 0:02:41]} 10. g4 {[%clk 0:02:59]}  h6 {[%clk 0:02:40]} 11. Qg3 {[%clk 0:02:58]}  g5 {[%clk 0:02:37]} 12. Qxe5 {[%clk 0:02:42]}  c5 {[%clk 0:02:35]} 13. Bg2 {[%clk 0:02:29]}  Nc6 {[%clk 0:02:26]} 14. Qg3 {[%clk 0:02:28]}  Bd6 {[%clk 0:02:26]} 15. f4 {[%clk 0:02:26]}  gxf4 {[%clk 0:02:25]} 16. Bxf4 {[%clk 0:02:26]}  Bxf4+ {[%clk 0:02:25]} 17. Qxf4 {[%clk 0:02:25]}  Qe7 {[%clk 0:02:24]} 18. Ng3 {[%clk 0:02:23]}  Ne5 {[%clk 0:02:20]} 19. Nf5 {[%clk 0:02:22]}  Qc7 {[%clk 0:02:15]} 20. Kb1 {[%clk 0:02:14]}  O-O-O {[%clk 0:02:12]} 21. Rhf1 {[%clk 0:02:13]}  Nfd7 {[%clk 0:02:09]} 22. Nxh6 {[%clk 0:02:01]}  Kb8 {[%clk 0:02:04]} 23. Nf5 {[%clk 0:01:50]}  c4 {[%clk 0:02:03]} 24. dxc4 {[%clk 0:01:45]}  Qxc4 {[%clk 0:01:57]} 25. Rxd4 {[%clk 0:01:43]}  Qb5 {[%clk 0:01:57]} 26. Rfd1 {[%clk 0:01:40]}  Ka8 {[%clk 0:01:55]} 27. Nd6 {[%clk 0:01:22]}  Qc6 {[%clk 0:01:48]} 28. Nxf7 {[%clk 0:00:45]}  Nxf7 {[%clk 0:01:40]} 29. Qxf7 {[%clk 0:00:45]}  Rc8 {[%clk 0:01:41]} 30. c3 {[%clk 0:00:40]}  Ne5 {[%clk 0:01:39]} 31. Qd5 {[%clk 0:00:39]}  Qf6 {[%clk 0:01:33]} 32. Rf1 {[%clk 0:00:35]}  Qg7 {[%clk 0:01:32]} 33. Rdd1 {[%clk 0:00:29]}  Nc4 {[%clk 0:01:30]} 34. Qd3 {[%clk 0:00:20]}  Qg5 {[%clk 0:01:23]} 35. Rfe1 {[%clk 0:00:15]}  Qb5 {[%clk 0:01:22]} 36. Qe2 {[%clk 0:00:12]}  Rh6 {[%clk 0:01:12]} 37. Ka1 {[%clk 0:00:11]}  Rb6 {[%clk 0:01:06]} 38. b3 {[%clk 0:00:09]}  Qa5 {[%clk 0:01:07]} 39. Rc1 {[%clk 0:00:05]}  Rxb3 {[%clk 0:01:03]} 40. Bf1 {[%clk 0:00:04]}  Rb2 {[%clk 0:00:59]} 41. Qxc4 {[%clk 0:00:02]}  Rxc4 {[%clk 0:00:58]} 42. Bxc4 {[%clk 0:00:02]}  Qa3 {[%clk 0:00:28]} 43. e5 {[%clk 0:00:03]}  b5 {[%clk 0:00:28]} 44. Bd5+ {[%clk 0:00:02]}  Kb8 {[%clk 0:00:28]} 45. e6 {[%clk 0:00:03]}  Re2 {[%clk 0:00:26]} 46. Rb1 {[%clk 0:00:02]}  Rxe1 {[%clk 0:00:25]} 0-1


[Site "https://www.chess.com"]